bitfinex/quotes_BTCUSD_20250908
["timestamp","ask_amount","ask_price","bid_price","bid_amount"]
[1757333568980,0.4947366,112040.0,112030.0,0.21424002]
[1757333569606,0.4947366,112040.0,112030.0,0.21324002]
[1757333572502,0.4947366,112040.0,112020.0,0.14904]
[1757333572503,0.1785236,112030.0,112020.0,0.14904]
[1757333572693,0.49435196,112030.0,112020.0,0.14904]
[1757333572898,0.49356253,112030.0,112020.0,0.14904]
[1757333573925,0.52037033,112030.0,112020.0,0.14904]
[1757333574139,0.52037033,112030.0,112020.0,0.15004]
[1757333578300,0.53078618,112030.0,112020.0,0.15004]
[1757333583545,0.52037033,112030.0,112020.0,0.15004]
[1757333585954,0.53108744,112030.0,112020.0,0.15004]
[1757333587462,0.2103814,112030.0,112020.0,0.15004]
[1757333587682,0.2083814,112030.0,112020.0,0.55402492]
[1757333587892,0.2053314,112030.0,112020.0,0.55402492]
[1757333588128,0.2053314,112030.0,112020.0,0.64403599]
[1757333588387,0.1835736,112030.0,112020.0,0.64403599]
[1757333588763,0.1835736,112030.0,112020.0,0.24403599]
[1757333589188,0.1835736,112030.0,112020.0,0.64403599]
[1757333589308,0.1835736,112030.0,112020.0,0.64195599]
[1757333589506,0.49356253,112030.0,112020.0,0.64195599]
[1757333589718,0.49356253,112030.0,112020.0,0.15004]
[1757333590127,0.52036908,112030.0,112020.0,0.15004]
[1757333590908,0.21038015,112030.0,112020.0,0.15004]
[1757333591106,0.52036908,112030.0,112020.0,0.15004]
[1757333604009,0.21038015,112030.0,112020.0,0.15004]
[1757333604215,0.52036908,112030.0,112020.0,0.15004]
[1757333610532,0.52049228,112030.0,112020.0,0.15004]
[1757333612172,0.21038015,112030.0,112020.0,0.15004]
[1757333612373,0.52049228,112030.0,112020.0,0.15004]
[1757333613814,0.20741015,112030.0,112020.0,0.15202]
[1757333614013,0.52061228,112030.0,112020.0,0.15004]
[1757333614406,0.02680655,112030.0,112020.0,0.92953755]
[1757333614617,0.20533015,112030.0,112020.0,0.92953755]
[1757333614832,0.1785236,112030.0,112020.0,1.26552025]
[1757333615038,0.16780612,112030.0,112020.0,1.34547258]
[1757333615472,0.16780612,112030.0,112020.0,1.36334258]
[1757333615680,0.16780612,112030.0,112020.0,1.34547258]
[1757333618288,0.16780612,112030.0,112020.0,1.52401212]
[1757333618504,0.16780612,112030.0,112020.0,1.54715212]
[1757333618907,0.16780612,112030.0,112020.0,1.57395221]
[1757333620185,0.16780612,112030.0,112020.0,1.83715221]
[1757333620561,0.16780612,112030.0,112020.0,1.84565221]
[1757333621134,0.16780612,112030.0,112020.0,1.65861267]
[1757333621986,0.16780612,112030.0,112020.0,1.83715221]
[1757333622614,0.16780612,112030.0,112020.0,1.75719988]
[1757333624078,0.16780612,112030.0,112020.0,1.83715221]
[1757333624459,0.16780612,112030.0,112020.0,2.14726434]
[1757333624635,0.17850767,112040.0,112030.0,0.1785236]
[1757333624864,0.17850767,112040.0,112030.0,0.84461954]
[1757333625075,0.17850767,112040.0,112030.0,0.84795954]
[1757333625283,0.17850767,112040.0,112030.0,1.24795954]
[1757333625418,0.17850767,112040.0,112030.0,1.26582954]
[1757333625625,0.17850767,112040.0,112030.0,1.24795954]
[1757333626551,0.17850767,112040.0,112030.0,1.39687954]
[1757333628782,0.17850767,112040.0,112030.0,1.08676741]
[1757333629069,0.17850767,112040.0,112030.0,1.34996741]
[1757333630520,0.17850767,112040.0,112030.0,0.89093528]
[1757333630680,0.18156767,112040.0,112030.0,1.35710741]
[1757333630879,0.18368767,112040.0,112030.0,1.35710741]
[1757333631179,0.17850767,112040.0,112030.0,1.35710741]
[1757333632411,0.4937998,112040.0,112030.0,0.89609528]
[1757333632625,0.80391193,112040.0,112030.0,0.58109599]
[1757333633045,0.80391193,112040.0,112030.0,0.07706]
[1757333633263,0.80391193,112040.0,112030.0,0.22702]
[1757333633690,0.80491193,112040.0,112030.0,0.22702]
[1757333634074,0.4947998,112040.0,112030.0,0.22702]
[1757333634842,0.18468767,112040.0,112030.0,0.22702]
[1757333635991,0.18468767,112040.0,112030.0,0.22632171]
[1757333636351,0.18568767,112040.0,112030.0,0.22632171]
[1757333637530,0.4957998,112040.0,112030.0,0.22632171]
[1757333646582,0.4957998,112040.0,112030.0,0.22608171]
[1757333648847,0.52260364,112040.0,112030.0,0.22608171]
[1757333652545,0.21249151,112040.0,112030.0,0.22608171]
[1757333652943,0.52260364,112040.0,112030.0,0.22608171]
[1757333653375,0.52260364,112040.0,112030.0,0.22596171]
[1757333656605,0.20731151,112040.0,112030.0,0.63005983]
[1757333656829,0.18050767,112040.0,112030.0,1.00545125]
[1757333657051,0.18050767,112040.0,112030.0,0.69533912]
[1757333657269,0.18050767,112040.0,112030.0,0.63141983]
[1757333657777,0.18050767,112040.0,112030.0,1.03141983]
[1757333658008,0.17950767,112040.0,112030.0,1.34153196]
[1757333658130,0.17850767,112040.0,112030.0,1.34153196]
[1757333659895,0.17850767,112040.0,112030.0,1.03005983]
[1757333660097,0.18368767,112040.0,112030.0,0.88045983]
[1757333660401,0.18368767,112040.0,112030.0,1.03009983]
[1757333660647,0.18368767,112040.0,112030.0,1.09414217]
[1757333660848,0.18156767,112040.0,112030.0,1.09414217]
[1757333661069,0.17850767,112040.0,112030.0,1.09414217]
[1757333663665,0.17850767,112040.0,112030.0,1.11201217]
[1757333663850,0.17850767,112040.0,112030.0,1.09414217]
[1757333666701,0.17850767,112040.0,112030.0,0.78403004]
[1757333666914,0.18376767,112040.0,112030.0,1.09414217]
[1757333667404,0.18163767,112040.0,112030.0,1.09414217]
[1757333667612,0.18163767,112040.0,112030.0,0.78403004]
[1757333667823,0.18163767,112040.0,112030.0,1.35734217]
[1757333670635,0.18376767,112040.0,112030.0,1.35734217]
[1757333671789,0.17850767,112040.0,112030.0,1.35734217]
[1757333672431,0.17850767,112040.0,112030.0,1.35714013]
[1757333673927,0.17850767,112040.0,112030.0,1.37501013]
[1757333674095,0.17850767,112040.0,112030.0,1.35714013]
[1757333675449,0.17850767,112040.0,112030.0,1.35850013]
[1757333676461,0.17850767,112040.0,112030.0,1.35714013]
[1757333676994,0.17850767,112040.0,112030.0,1.35850013]
[1757333677204,0.17850767,112040.0,112030.0,1.29445779]
[1757333677767,0.17850767,112040.0,112030.0,1.29309779]
[1757333678847,0.17850767,112040.0,112030.0,1.29445779]
[1757333679583,0.17850767,112040.0,112030.0,0.9845477]
[1757333679883,0.17850767,112040.0,112030.0,1.29445779]
[1757333681724,0.17850767,112040.0,112030.0,0.9845477]
[1757333681883,0.17850767,112040.0,112030.0,1.29445779]
[1757333683211,0.17850767,112040.0,112030.0,1.37441012]
[1757333683433,0.17850767,112040.0,112030.0,1.37305012]
[1757333689250,0.17850767,112040.0,112030.0,1.55293372]
[1757333689475,0.17850767,112040.0,112030.0,1.37441012]
[1757333689675,0.16779094,112040.0,112030.0,1.55293372]
[1757333689886,0.16779094,112040.0,112030.0,1.37441012]
[1757333690610,0.18746244,112050.0,112030.0,1.57632372]
[1757333690849,0.17849174,112050.0,112040.0,0.72949375]
[1757333690997,0.17849174,112050.0,112040.0,1.07400608]
[1757333691203,0.1873996,112060.0,112040.0,1.06628384]
[1757333691406,0.1873996,112060.0,112050.0,0.85043641]
[1757333691604,0.1873996,112060.0,112050.0,0.9444824]
[1757333692239,0.1873996,112060.0,112050.0,1.3444824]
[1757333692630,0.1883996,112060.0,112050.0,1.34462144]
[1757333692785,0.1873996,112060.0,112050.0,1.52311318]
[1757333693400,0.1873996,112060.0,112050.0,1.34462144]
[1757333694916,0.1873996,112060.0,112050.0,1.20562458]
[1757333695150,0.1873996,112060.0,112050.0,1.35474458]
[1757333695945,0.1873996,112060.0,112050.0,1.35470458]
[1757333696107,0.1873996,112060.0,112050.0,1.27460835]
[1757333697389,0.1873996,112060.0,112050.0,1.53780835]
[1757333698120,0.1873996,112060.0,112050.0,1.54630835]
[1757333699368,0.1873996,112060.0,112050.0,1.61020609]
[1757333699662,0.1873996,112060.0,112050.0,1.54630835]
[1757333700255,0.1873996,112060.0,112050.0,1.39722835]
[1757333700459,0.1873996,112060.0,112050.0,1.54626835]
[1757333700627,0.1873996,112060.0,112050.0,1.23635826]
[1757333701119,0.1873996,112060.0,112050.0,0.92644817]
[1757333701307,0.1873996,112060.0,112050.0,1.23635826]
[1757333701529,0.1873996,112060.0,112050.0,1.14985522]
[1757333701935,0.1873996,112060.0,112050.0,1.30021522]
[1757333703414,0.1873996,112060.0,112050.0,1.61012531]
[1757333704133,0.1873996,112060.0,112050.0,1.15121522]
[1757333704343,0.1873996,112060.0,112050.0,1.30025522]
[1757333707322,0.20531328,112080.0,112050.0,1.98865705]
[1757333707538,0.17845989,112070.0,112060.0,0.4879518]
[1757333707726,0.17845989,112070.0,112060.0,0.57153803]
[1757333708102,0.17845989,112070.0,112060.0,0.97153803]
[1757333708330,0.17851971,112080.0,112060.0,0.97153803]
[1757333708492,0.17845989,112070.0,112060.0,0.82117803]
[1757333708691,0.17845989,112070.0,112060.0,1.28008812]
[1757333708919,0.17845989,112070.0,112060.0,1.28108812]
[1757333709125,0.17845989,112070.0,112060.0,1.28144812]
[1757333709522,0.17845989,112070.0,112060.0,1.28244812]
[1757333709903,0.17845989,112070.0,112060.0,1.10397231]
[1757333710098,0.17845989,112070.0,112060.0,1.10497231]
[1757333710780,0.17845989,112070.0,112060.0,1.10397231]
[1757333711078,0.17845989,112070.0,112060.0,1.10497231]
[1757333712170,0.17845989,112070.0,112060.0,1.36817231]
[1757333712761,0.17845989,112070.0,112060.0,1.37667231]
[1757333713131,0.17845989,112070.0,112060.0,1.37663231]
[1757333714984,0.17845989,112070.0,112060.0,1.36813231]
[1757333717026,0.17845989,112070.0,112060.0,1.05822222]
[1757333717285,0.17845989,112070.0,112060.0,1.36813231]
[1757333719903,0.17845989,112070.0,112060.0,1.37663231]
[1757333720111,0.16774693,112070.0,112060.0,1.37663231]
[1757333721525,0.16774693,112070.0,112060.0,1.55510812]
[1757333725620,0.16774693,112070.0,112060.0,1.37663231]
[1757333726019,0.16774693,112070.0,112060.0,1.55510812]
[1757333726238,0.16774693,112070.0,112060.0,1.37663231]
[1757333726446,0.16774693,112070.0,112060.0,1.55510812]
[1757333726631,0.16774693,112070.0,112060.0,1.37663231]
[1757333727401,0.16774693,112070.0,112060.0,1.36813231]
[1757333729176,0.17290693,112070.0,112060.0,0.91640222]
[1757333729400,0.17569536,112070.0,112060.0,0.98313599]
[1757333729620,0.17290693,112070.0,112060.0,1.0385657]
[1757333730600,0.17569536,112070.0,112060.0,1.0385657]
[1757333731013,0.17081693,112070.0,112060.0,1.0406757]
[1757333731236,0.16774693,112070.0,112060.0,1.0406757]
[1757333731578,0.16774693,112070.0,112060.0,1.35058579]
[1757333732465,0.16774693,112070.0,112060.0,1.3504424]
[1757333732933,0.17081693,112070.0,112060.0,1.3504424]
[1757333733354,0.16774693,112070.0,112060.0,1.3504424]
[1757333733556,0.16774693,112070.0,112060.0,1.28651269]
[1757333734184,0.17290693,112070.0,112060.0,1.28651269]
[1757333734404,0.17290693,112070.0,112060.0,1.28440269]
[1757333734603,0.17569536,112070.0,112060.0,1.28440269]
[1757333734785,0.17569536,112070.0,112060.0,1.13544269]
[1757333734996,0.17569536,112070.0,112060.0,1.28440269]
[1757333735409,0.17569536,112070.0,112060.0,0.97463599]
[1757333735755,0.17569536,112070.0,112060.0,1.28651269]
[1757333735963,0.17053536,112070.0,112060.0,1.28651269]
[1757333736456,0.17053536,112070.0,112060.0,1.13755269]
[1757333736660,0.17569536,112070.0,112060.0,1.28440269]
[1757333737016,0.17569536,112070.0,112060.0,0.97463599]
[1757333737995,0.48546206,112070.0,112060.0,0.97463599]
[1757333738244,0.48267363,112070.0,112060.0,1.03862248]
[1757333738770,0.48267363,112070.0,112060.0,0.21952]
[1757333740678,0.48267363,112070.0,112060.0,0.21852]
[1757333741465,0.48267363,112070.0,112060.0,0.21752]
[1757333742106,0.48267363,112070.0,112060.0,0.21852]
[1757333742672,0.48267363,112070.0,112060.0,0.21752]
[1757333742870,0.48267363,112070.0,112060.0,0.61752]
[1757333745281,0.48267363,112070.0,112050.0,0.07719904]
[1757333745282,0.17847581,112060.0,112050.0,0.07719904]
[1757333745484,0.80386789,112060.0,112050.0,0.31807503]
[1757333745686,0.80316921,112060.0,112050.0,0.31807503]
[1757333746065,0.80316921,112060.0,112050.0,0.71807503]
[1757333746266,0.49340251,112060.0,112050.0,0.71807503]
[1757333746491,0.49340251,112060.0,112050.0,0.70957503]
[1757333746805,0.49340251,112060.0,112050.0,0.71057503]
[1757333747494,0.49340251,112060.0,112050.0,0.71157503]
[1757333749372,0.49340251,112060.0,112050.0,0.31157503]
[1757333749721,0.49340251,112060.0,112050.0,0.71157503]
[1757333751485,0.49340251,112060.0,112050.0,0.61965904]
[1757333752704,0.18154581,112060.0,112050.0,1.02134173]
[1757333752877,0.18154581,112060.0,112050.0,1.02348173]
[1757333753316,0.18363581,112060.0,112050.0,0.62348173]
[1757333753522,0.49340251,112060.0,112050.0,0.31157503]
[1757333758944,0.18363581,112060.0,112050.0,0.31157503]
[1757333759179,0.51850767,112040.0,112030.0,1e-08]
[1757333759487,0.51850767,112040.0,112010.0,0.26041368]
[1757333759488,0.17853954,112020.0,112010.0,0.26041368]
[1757333759693,0.80295262,112020.0,112010.0,0.14900655]
[1757333759895,0.49351624,112020.0,112010.0,0.14900655]
[1757333760186,0.20846791,112020.0,112010.0,0.55282924]
[1757333760343,0.18165954,112020.0,112010.0,0.55282924]
[1757333760549,0.18653922,112020.0,112010.0,0.55282924]
[1757333760750,0.18374954,112020.0,112010.0,0.55282924]
[1757333761166,0.17853954,112020.0,112010.0,0.55282924]
[1757333761371,0.18132922,112020.0,112010.0,0.55282924]
[1757333761563,0.18653922,112020.0,112010.0,0.55282924]
[1757333761858,0.18574954,112020.0,112010.0,0.55282924]
[1757333762522,0.18153954,112020.0,112010.0,0.55282924]
[1757333762690,0.18432922,112020.0,112010.0,0.55282924]
[1757333762897,0.18153954,112020.0,112010.0,0.55282924]
[1757333763071,0.18153954,112020.0,112010.0,0.95282924]
[1757333763450,0.18465954,112020.0,112010.0,0.95282924]
[1757333763857,0.18674954,112020.0,112010.0,0.24092254]
[1757333765804,0.18674954,112020.0,112010.0,0.55072924]
[1757333767365,0.18674954,112020.0,112010.0,0.55072924]
[1757333767593,0.18674954,112020.0,112010.0,0.24096254]
[1757333768485,0.18153954,112020.0,112010.0,0.55286924]
[1757333768696,0.18153954,112020.0,112010.0,0.86399594]
[1757333769126,0.18153954,112020.0,112010.0,0.55422924]
[1757333769341,0.18153954,112020.0,112010.0,1.04255142]
[1757333769342,0.003,112020.0,112010.0,1.04255142]
[1757333769580,0.18053954,112020.0,112010.0,1.04255142]
[1757333769785,0.1785236,112030.0,112010.0,1.06349024]
[1757333769990,0.17853954,112020.0,112010.0,0.35068085]
[1757333770187,0.17853954,112020.0,112010.0,0.35918085]
[1757333770600,0.17853954,112020.0,112010.0,0.36054085]
[1757333770892,0.17853954,112020.0,112010.0,0.27390136]
[1757333771221,0.17853954,112020.0,112010.0,0.89343476]
[1757333771400,0.17853954,112020.0,112010.0,1.07199024]
[1757333771854,0.17853954,112020.0,112010.0,1.47199024]
[1757333772182,0.17853954,112020.0,112010.0,1.29343476]
[1757333772385,0.17853954,112020.0,112010.0,1.29443476]
[1757333772886,0.17853954,112020.0,112010.0,1.47399024]
[1757333774189,0.17853954,112020.0,112010.0,1.29543476]
[1757333774465,0.17853954,112020.0,112010.0,1.55863476]
[1757333778959,0.17853954,112020.0,112010.0,1.55013476]
[1757333779253,0.17853954,112020.0,112010.0,1.6139582]
[1757333781589,0.17853954,112020.0,112010.0,1.79251368]
[1757333781886,0.17853954,112020.0,112010.0,1.6139582]
[1757333783998,0.17853954,112020.0,112010.0,1.6224582]
[1757333785699,0.17853954,112020.0,112010.0,1.6139582]
[1757333785903,0.1785236,112030.0,112010.0,1.79251368]
[1757333786116,0.1785236,112030.0,112020.0,0.86364939]
[1757333786340,0.18743305,112040.0,112020.0,1.67897907]
[1757333786499,0.18743305,112040.0,112030.0,0.8422634]
[1757333786706,0.18743305,112040.0,112030.0,1.39800283]
[1757333787202,0.18743305,112040.0,112030.0,1.08823613]
[1757333788357,0.18943305,112040.0,112030.0,1.08823613]
[1757333788580,0.18743305,112040.0,112030.0,1.08823613]
[1757333790682,0.18843305,112040.0,112030.0,1.08823613]
[1757333791289,0.18743305,112040.0,112030.0,1.08823613]
[1757333792380,0.18743305,112040.0,112030.0,1.35143613]
[1757333794395,0.18743305,112040.0,112030.0,1.35154765]
[1757333798548,0.18743305,112040.0,112030.0,1.28772421]
[1757333799756,0.18743305,112040.0,112030.0,1.13552421]
[1757333800054,0.18743305,112040.0,112030.0,1.35012708]
[1757333800297,0.17850767,112040.0,112030.0,1.35012708]
[1757333800496,0.17850767,112040.0,112030.0,1.28744421]
[1757333800698,0.17850767,112040.0,112030.0,1.36726666]
[1757333801526,0.17850767,112040.0,112030.0,1.28744421]
[1757333802888,0.17850767,112040.0,112030.0,1.28600421]
[1757333803063,0.17850767,112040.0,112030.0,1.35004617]
[1757333803274,0.17850767,112040.0,112030.0,1.28600421]
[1757333803697,0.17850767,112040.0,112030.0,1.35004719]
[1757333804610,0.17850767,112040.0,112030.0,1.28600421]
[1757333806478,0.17850767,112040.0,112030.0,1.28736421]
[1757333806878,0.17850767,112040.0,112030.0,1.28600421]
[1757333807241,0.17850767,112040.0,112030.0,0.97612599]
[1757333807480,0.17850767,112040.0,112030.0,1.28600421]
[1757333808556,0.17850767,112040.0,112030.0,0.82564599]
[1757333808793,0.18386767,112040.0,112030.0,0.97608599]
[1757333809455,0.17850767,112040.0,112030.0,0.97608599]
[1757333810153,0.17850767,112040.0,112030.0,1.28596421]
[1757333810400,0.17850767,112040.0,112030.0,1.54567026]
[1757333810812,0.17850767,112040.0,112030.0,1.36714666]
[1757333811017,0.17850767,112040.0,112030.0,1.54567026]
[1757333812047,0.17850767,112040.0,112030.0,1.36714666]
[1757333812294,0.17850767,112040.0,112030.0,1.54567026]
[1757333812522,0.17850767,112040.0,112030.0,1.36714666]
[1757333815148,0.17850767,112040.0,112030.0,1.54567026]
[1757333815792,0.17850767,112040.0,112030.0,1.36714666]
[1757333816878,0.17850767,112040.0,112030.0,1.54567026]
[1757333817391,0.04723165,112040.0,112030.0,1.46584781]
[1757333818025,0.17850767,112040.0,112030.0,1.46584781]
[1757333818655,0.17850767,112040.0,112030.0,1.48371781]
[1757333818861,0.18741632,112050.0,112040.0,0.17850767]
[1757333818862,0.17849174,112050.0,112040.0,0.17850767]
[1757333819061,0.17849174,112050.0,112040.0,0.74244188]
[1757333819487,0.17849174,112050.0,112040.0,1.14244188]
[1757333819875,0.17849174,112050.0,112040.0,1.13394188]
[1757333820731,0.17849174,112050.0,112040.0,1.13494188]
[1757333821355,0.17849174,112050.0,112040.0,1.19900143]
[1757333821602,0.17849174,112050.0,112040.0,1.20000143]
[1757333822093,0.17849174,112050.0,112040.0,1.46320143]
[1757333823898,0.17847581,112060.0,112040.0,1.46320143]
[1757333824113,0.17847581,112060.0,112050.0,0.30622822]
[1757333824324,0.17847581,112060.0,112050.0,0.15730822]
[1757333824528,0.17847581,112060.0,112050.0,0.62002644]
[1757333824940,0.17847581,112060.0,112050.0,1.02138644]
[1757333825177,0.17847581,112060.0,112050.0,1.02002644]
[1757333825404,0.17847581,112060.0,112050.0,0.71028738]
[1757333825630,0.17847581,112060.0,112050.0,1.0201656]
[1757333826364,0.17847581,112060.0,112050.0,1.0201256]
[1757333826998,0.17846131,112070.0,112060.0,0.02093882]
[1757333827212,0.17846131,112070.0,112060.0,0.5572032]
[1757333827416,0.18062131,112070.0,112060.0,0.68842759]
[1757333827620,0.18162131,112070.0,112060.0,0.68842759]
[1757333827826,0.17846131,112070.0,112060.0,0.68842759]
[1757333828432,0.18046131,112070.0,112060.0,0.68842759]
[1757333828691,0.18146131,112070.0,112060.0,0.68842759]
[1757333829406,0.18146131,112070.0,112060.0,1.08842759]
[1757333829863,0.18262131,112070.0,112060.0,1.08842759]
[1757333830096,0.18478131,112070.0,112060.0,1.08842759]
[1757333830846,0.18262131,112070.0,112060.0,0.77854937]
[1757333831075,0.18162131,112070.0,112060.0,1.08842759]
[1757333831798,0.17846131,112070.0,112060.0,1.08842759]
[1757333832322,0.18656974,112070.0,112060.0,0.78496937]
[1757333832531,0.21057388,112070.0,112060.0,0.78496937]
[1757333833587,0.5204521,112070.0,112060.0,0.16897599]
[1757333833782,0.5204521,112070.0,112060.0,0.32097599]
[1757333834162,0.5204521,112070.0,112060.0,0.16897599]
[1757333834386,0.5204521,112070.0,112060.0,0.32097599]
[1757333836372,0.5214521,112070.0,112060.0,0.32097599]
[1757333836828,0.5234521,112070.0,112060.0,0.32097599]
[1757333838306,0.5234521,112070.0,112060.0,0.32081599]
[1757333841051,0.21357388,112070.0,112060.0,0.72081599]
[1757333841241,0.5234521,112070.0,112060.0,0.72081599]
[1757333844215,0.5234521,112070.0,112060.0,0.32081599]
[1757333844876,0.5234521,112070.0,112060.0,0.72081599]
[1757333847807,0.5234521,112070.0,112060.0,0.32081599]
[1757333848240,0.5234521,112070.0,112060.0,0.72081599]
[1757333848611,0.5234521,112070.0,112060.0,0.32081599]
[1757333849079,0.21357388,112070.0,112060.0,0.32081599]
[1757333849265,0.5234521,112070.0,112060.0,0.32081599]
[1757333851838,0.20825388,112070.0,112060.0,0.38675937]
[1757333852047,0.18146131,112070.0,112060.0,0.38811937]
[1757333852260,0.18146131,112070.0,112060.0,0.38675937]
[1757333852469,0.18146131,112070.0,112060.0,0.38811937]
[1757333852670,0.18146131,112070.0,112060.0,0.72416599]
[1757333852875,0.17946131,112070.0,112060.0,0.72416599]
[1757333853197,1.14725618,112070.0,112060.0,0.06399925]
[1757333853355,0.86038569,112070.0,112060.0,0.15324]
[1757333854435,1.17031261,112070.0,112060.0,0.15324]
[1757333854919,1.17331261,112070.0,112060.0,0.15324]
[1757333856449,0.55350747,112070.0,112060.0,0.15324]
[1757333856855,0.86341004,112070.0,112060.0,0.15324]
[1757333858854,0.55350747,112070.0,112060.0,0.15324]
[1757333859061,0.86341004,112070.0,112060.0,0.15324]
[1757333861560,1.17331261,112070.0,112060.0,0.15324]
[1757333864481,0.86341004,112070.0,112060.0,0.15324]
[1757333865217,1.17331261,112070.0,112060.0,0.15324]
[1757333866707,0.86341004,112070.0,112060.0,0.15324]
[1757333870806,0.55350747,112070.0,112060.0,0.15324]
[1757333871013,0.86341004,112070.0,112060.0,0.15324]
[1757333871223,0.17847581,112060.0,112050.0,0.00013916]
[1757333871428,0.80106963,112060.0,112050.0,0.24485515]
[1757333871636,0.80318095,112060.0,112050.0,0.24485515]
[1757333872289,0.82997856,112060.0,112050.0,0.24485515]
[1757333876424,0.21017342,112060.0,112050.0,0.24485515]
[1757333876627,0.52207599,112060.0,112050.0,0.24485515]
[1757333877741,0.52207599,112060.0,112050.0,0.64485515]
[1757333878625,0.21217342,112060.0,112050.0,0.64485515]
[1757333878786,0.52207599,112060.0,112050.0,0.64485515]
[1757333878991,0.52307599,112060.0,112050.0,0.64485515]
[1757333880052,0.21317342,112060.0,112050.0,0.64485515]
[1757333880262,0.52307599,112060.0,112050.0,0.64485515]
[1757333880631,0.52307599,112060.0,112050.0,0.24485515]
[1757333881050,0.52307599,112060.0,112050.0,0.64485515]
[1757333883226,0.52307599,112060.0,112050.0,0.7088544]
[1757333884077,0.21317342,112060.0,112050.0,1.01875697]
[1757333885722,0.21317342,112060.0,112050.0,0.7088544]
[1757333885935,0.21317342,112060.0,112050.0,1.01875697]
[1757333886778,0.21317342,112060.0,112050.0,0.7088544]
[1757333887009,0.21317342,112060.0,112050.0,0.7774144]
[1757333887275,0.21317342,112060.0,112050.0,0.3774144]
[1757333887774,0.21317342,112060.0,112050.0,0.13269841]
[1757333887775,0.52307599,112060.0,112050.0,0.13269841]
[1757333888019,0.52307599,112060.0,112050.0,0.21765841]
[1757333888294,0.21317342,112060.0,112050.0,0.21765841]
[1757333888542,0.83297856,112060.0,112050.0,0.00013916]
[1757333888738,0.84231629,112060.0,112050.0,0.15357916]
[1757333889395,0.99575629,112060.0,112050.0,0.00013916]
[1757333889572,0.17850767,112040.0,112030.0,0.40425925]
[1757333889810,0.49119942,112040.0,112030.0,0.38655465]
[1757333889990,0.18340767,112040.0,112030.0,0.38655465]
[1757333890191,0.5201127,112040.0,112030.0,0.38655465]
[1757333890603,0.21021013,112040.0,112030.0,0.38655465]
[1757333890911,0.5201127,112040.0,112030.0,0.38655465]
[1757333891150,0.21121013,112040.0,112030.0,0.38655465]
[1757333891355,0.5211127,112040.0,112030.0,0.00863941]
[1757333891612,0.83101527,112040.0,112030.0,0.15349941]
[1757333892447,0.5211127,112040.0,112030.0,0.15349941]
[1757333893075,0.5221127,112040.0,112030.0,0.15349941]
[1757333893250,0.83201527,112040.0,112030.0,0.15349941]
[1757333893420,0.5221127,112040.0,112030.0,0.15349941]
[1757333896177,0.21221013,112040.0,112030.0,0.15349941]
[1757333899265,0.21221013,112040.0,112030.0,0.55747797]
[1757333899802,0.21221013,112040.0,112030.0,0.95747797]
[1757333900793,0.21221013,112040.0,112030.0,0.95531797]
[1757333901449,0.21221013,112040.0,112030.0,0.6454154]
[1757333904620,0.21221013,112040.0,112030.0,0.55531797]
[1757333905084,0.21221013,112040.0,112030.0,0.95531797]
[1757333908588,0.21221013,112040.0,112030.0,0.55531797]
[1757333909045,0.21221013,112040.0,112030.0,0.2454154]
[1757333909684,0.21221013,112040.0,112030.0,0.0920554]
[1757333909887,0.21221013,112040.0,112030.0,0.2446554]
[1757333910289,0.5221127,112040.0,112030.0,0.2446554]
[1757333913733,0.5221127,112040.0,112030.0,0.6446554]
[1757333916409,0.21221013,112040.0,112030.0,0.6446554]
[1757333916847,0.21221013,112040.0,112030.0,0.2446554]
[1757333917067,0.52220017,112040.0,112030.0,0.15249941]
[1757333917280,0.52220017,112040.0,112030.0,0.15245941]
[1757333918331,0.52220017,112040.0,112030.0,0.00013941]
[1757333918332,1.01452017,112040.0,112030.0,0.00013941]
[1757333929095,0.17853954,112020.0,112010.0,0.28451925]
[1757333929309,0.17853954,112020.0,112010.0,0.22065944]
[1757333929310,0.49131926,112020.0,112010.0,0.22065944]
[1757333929594,0.49345958,112020.0,112010.0,0.22065944]
[1757333929794,0.21027751,112020.0,112010.0,0.22065944]
[1757333930715,0.21027751,112020.0,112010.0,0.22165944]
[1757333930932,0.21127751,112020.0,112010.0,0.22165944]
[1757333931357,0.21127751,112020.0,112010.0,0.22065944]
[1757333938314,0.21127751,112020.0,112010.0,0.15209944]
[1757333948963,0.52126755,112020.0,112010.0,0.00013944]
[1757333949218,0.52126755,112020.0,112010.0,0.15153944]
[1757333954242,0.86126755,112020.0,112010.0,0.00013944]
[1757333954435,0.85976755,112020.0,112010.0,0.00013944]
[1757333955105,1.01096755,112020.0,112010.0,0.00013944]
[1757333955842,1.01100755,112020.0,112010.0,0.00013944]
[1757333958447,0.85976755,112020.0,112010.0,0.00013944]
[1757333958839,1.01092755,112020.0,112010.0,0.00013944]
[1757333968697,1.32091759,112020.0,112010.0,1e-08]
[1757333968857,1.34344759,112020.0,112010.0,1e-08]
[1757333972215,1.19228759,112020.0,112010.0,1e-08]
[1757333972419,1.34312759,112020.0,112010.0,1e-08]
[1757333973438,1.19228759,112020.0,112010.0,1e-08]
[1757333973647,1.34312759,112020.0,112010.0,1e-08]
[1757333974964,1.34308759,112020.0,112010.0,1e-08]
[1757333975098,1.19228759,112020.0,112010.0,1e-08]
[1757333975331,1.34304759,112020.0,112010.0,1e-08]
[1757333977316,1.19228759,112020.0,112010.0,1e-08]
[1757333977515,1.34300759,112020.0,112010.0,1e-08]
[1757333978481,1.34348875,112020.0,112010.0,1e-08]
[1757333979466,1.34344875,112020.0,112010.0,1e-08]
[1757333981767,1.19276875,112020.0,112010.0,1e-08]
[1757333981988,1.34340875,112020.0,112010.0,1e-08]
[1757333982676,1.19276875,112020.0,112010.0,1e-08]
[1757333982893,1.34336875,112020.0,112010.0,1e-08]
[1757333983100,1.19276875,112020.0,112010.0,1e-08]
[1757333983405,1.34332875,112020.0,112010.0,1e-08]
[1757333984028,1.19276875,112020.0,112010.0,1e-08]
[1757333984421,1.34328875,112020.0,112010.0,1e-08]
[1757333990735,1.34352875,112020.0,112010.0,1e-08]
[1757334005606,0.72306751,112020.0,112010.0,1e-08]
[1757334005809,1.34352875,112020.0,112010.0,1e-08]
[1757334006016,1.32099875,112020.0,112010.0,1e-08]
[1757334006239,0.70021751,112020.0,112010.0,1e-08]
[1757334006656,1.01044813,112020.0,112010.0,1e-08]
[1757334007391,0.70021751,112020.0,112010.0,1e-08]
[1757334007595,1.01044813,112020.0,112010.0,1e-08]
[1757334007800,0.86000813,112020.0,112010.0,1e-08]
[1757334008203,0.54484751,112020.0,112010.0,0.31227063]
[1757334008410,0.69532751,112020.0,112010.0,0.31227063]
[1757334008845,0.69532751,112020.0,112010.0,0.00204001]
[1757334009049,0.69828751,112020.0,112010.0,0.00204001]
[1757334013025,0.20484751,112020.0,112010.0,0.15248001]
[1757334013224,0.20484751,112020.0,112010.0,0.40418662]
[1757334013434,0.20484751,112020.0,112010.0,0.244396]
[1757334013822,0.20484751,112020.0,112010.0,0.55462662]
[1757334014390,0.20484751,112020.0,112010.0,0.95462662]
[1757334014590,0.20484751,112020.0,112010.0,0.55462662]
[1757334024231,0.20685751,112020.0,112010.0,0.55462662]
[1757334024561,0.52025813,112020.0,112010.0,0.242356]
[1757334025334,0.52025813,112020.0,112010.0,0.244466]